fUST/lending_fUST_20250814
["ID","MTS","AMOUNT","RATE_DAILY","PERIOD"]
[379141355,1755160247831,-460.0,0.0001806,2]
[379141356,1755160247840,-460.0,0.0001806,2]
[379141357,1755160247850,-1046.59,0.0001806,2]
[379141358,1755160247859,-1062.92,0.0001806,2]
[379141359,1755160247869,-1125.8,0.0001806,2]
[379141360,1755160247879,-677.83,0.0001806,2]
[379141361,1755160247889,-561.49,0.0001806,2]
[379141362,1755160247898,-500.0,0.0001806,2]
[379141363,1755160247907,-500.0,0.0001806,2]
[379141364,1755160247916,-500.0,0.0001806,2]
[379141365,1755160247926,-500.0,0.0001806,2]
[379141366,1755160247935,-500.0,0.0001806,2]
[379141367,1755160247945,-469.97269369,0.0001806,2]
[379141368,1755160247954,-467.86793235,0.0001806,2]
[379141369,1755160247964,-460.0,0.0001806,2]
[379141370,1755160247974,-460.0,0.0001806,2]
[379141371,1755160247983,-460.0,0.0001806,2]
[379141372,1755160247992,-12884.78,0.0001806,2]
[379141373,1755160248002,-1052.12,0.0001806,2]
[379141374,1755160248012,-1409.75336601,0.0001806,2]
[379141395,1755160321936,680.870971,0.00013699,2]
[379141396,1755160325182,1600.0,0.0001752,2]
[379141397,1755160678264,4521.60704326,0.00017003,2]
[379141398,1755160678285,10000.0,0.00017003,2]
[379141399,1755160678305,10000.0,0.00017003,2]
[379141400,1755160678326,3114.70254184,0.00017003,2]
[379141402,1755160804374,-223.24389541,0.00017873,2]
[379141403,1755160804397,-3465.82068808,0.00017917,2]
[379141404,1755160804422,-988.04866284,0.00017948,2]
[379141405,1755160804444,-272.0,0.00017957,2]
[379141406,1755160804465,-300.0,0.00017957,2]
[379141407,1755160804486,-300.0,0.00017957,2]
[379141408,1755160804509,-1200.0,0.00017957,2]
[379141409,1755160804530,-300.0,0.00017957,2]
[379141410,1755160804552,-300.0,0.00017957,2]
[379141411,1755160804574,-225.21732326,0.00017958,2]
[379141412,1755160804597,-500.0,0.00017958,2]
[379141413,1755160804622,-500.0,0.00017958,2]
[379141414,1755160804645,-500.0,0.00017958,2]
[379141415,1755160804668,-500.0,0.00017958,2]
[379141416,1755160804690,-484.67716297,0.00017958,2]
[379141417,1755160804710,-247.796369,0.00017958,2]
[379141418,1755160804731,-340.03117192,0.00017958,2]
[379141419,1755160804754,-500.0,0.00017958,2]
[379141420,1755160804774,-500.0,0.00017958,2]
[379141421,1755160804796,-197.82360524,0.00017958,2]
[379141422,1755160804817,-500.0,0.00017958,2]
[379141423,1755160804838,-612.15178604,0.00017958,2]
[379141424,1755160804862,-1200.0,0.00017958,2]
[379141425,1755160804889,-460.0,0.00017958,2]
[379141426,1755160804918,-460.0,0.00017958,2]
[379141427,1755160804951,-100906.18933524,0.00017959,2]
[379141430,1755160978500,171516.869439,0.0003,120]
[379141431,1755161012012,308.0,0.00017623,2]
[379141432,1755161016488,308.0,0.00017744,2]
[379141433,1755161109566,252.61060333,0.00017773,2]
[379141434,1755161131154,173.080148,0.00022504,30]
[379141435,1755161182682,6016.68685483,0.0001784,2]
[379141436,1755161182705,330.58314517,0.0001784,2]
[379141437,1755161192125,-683.0,0.00017872,2]
[379141438,1755161192145,-790.43893024,0.00017873,2]
[379141439,1755161192165,-300.0,0.00017947,2]
[379141440,1755161192185,-152.87880415,0.00017948,2]
[379141441,1755161192204,-12844.22297561,0.00017948,2]
[379141442,1755161222150,9669.41685483,0.00016959,2]
[379141443,1755161222194,1138.15059307,0.00016959,2]
[379141444,1755161267036,8861.84940693,0.00016957,2]
[379141445,1755161267059,1138.15059307,0.00016957,2]
[379141447,1755161276617,688.121005,0.00013699,2]
[379141448,1755161283728,946.766472,0.00016957,2]
[379141457,1755161339984,2218.78637568,0.0001,2]
[379141484,1755161432091,-213.66417539,0.00017856,2]
[379141485,1755161432101,-213.66417538,0.00017858,2]
[379141486,1755161432113,-771.14172934,0.00017861,2]
[379141487,1755161432122,-300.0,0.00017928,2]
[379141488,1755161432132,-751.55427166,0.00017929,2]
[379141489,1755161432146,-19.58745764,0.00017929,2]
[379141490,1755161432155,-354.52034469,0.00017948,2]
[379141491,1755161432167,-1507.54570219,0.00017948,2]
[379141492,1755161432177,-3734.61449297,0.00017948,2]
[379141493,1755161432189,-446.15577168,0.00017948,2]
[379141551,1755161437905,-2139.78592966,0.00017948,2]
[379141552,1755161437916,-533.92,0.00017948,2]
[379141553,1755161437958,-5308.39561084,0.00017948,2]
[379141554,1755161437969,-1000.9999859,0.00017948,2]
[379141555,1755161438066,-2015.51730841,0.00017948,2]
[379141556,1755161438077,-801.06730166,0.00017948,2]
[379141557,1755161438086,-492.40143976,0.00017956,2]
[379141558,1755161438097,-444.99950906,0.00017956,2]
[379141559,1755161438110,-196.59905118,0.00017956,2]
[379141560,1755161438119,-460.0,0.00017956,2]
[379141561,1755161438128,-460.0,0.00017956,2]
[379141562,1755161438137,-602.09,0.00017956,2]
[379141563,1755161438146,-805.43,0.00017956,2]
[379141564,1755161438155,-2236.27,0.00017956,2]
[379141565,1755161438164,-518.68,0.00017956,2]
[379141566,1755161438173,-460.0,0.00017956,2]
[379141567,1755161438182,-465.55179134,0.00017956,2]
[379141568,1755161438191,-460.0,0.00017957,2]
[379141569,1755161438200,-460.0,0.00017957,2]
[379141570,1755161438209,-469.1963376,0.00017957,2]
[379141571,1755161438219,-460.0,0.00017957,2]
[379141572,1755161438228,-460.0,0.00017957,2]
[379141573,1755161438236,-460.0,0.00017957,2]
[379141574,1755161438246,-328.55990969,0.00017957,2]
[379141575,1755161438255,-460.0,0.00017957,2]
[379141576,1755161438264,-460.0,0.00017957,2]
[379141577,1755161438274,-460.0,0.00017957,2]
[379141578,1755161438283,-460.0,0.00017957,2]
[379141579,1755161438295,-418.7864661,0.00017957,2]
[379141580,1755161438304,-460.0,0.00017957,2]
[379141581,1755161438314,-460.0,0.00017957,2]
[379141582,1755161438323,-460.0,0.00017957,2]
[379141583,1755161438333,-460.0,0.00017957,2]
[379141584,1755161438343,-460.0,0.00017957,2]
[379141585,1755161438352,-473.85,0.00017957,2]
[379141586,1755161438361,-460.0,0.00017957,2]
[379141587,1755161438371,-460.0,0.00017957,2]
[379141588,1755161438382,-505.88,0.00017957,2]
[379141589,1755161438393,-575.31,0.00017957,2]
[379141590,1755161438402,-460.0,0.00017957,2]
[379141591,1755161438411,-559.37,0.00017957,2]
[379141592,1755161438421,-460.0,0.00017957,2]
[379141593,1755161438431,-460.0,0.00017957,2]
[379141594,1755161438441,-460.0,0.00017957,2]
[379141595,1755161438453,-179.12797623,0.00017957,2]
[379141596,1755161438467,-528.23687791,0.00017957,2]
[379141597,1755161438487,-462.31561383,0.00017958,2]
[379141598,1755161438497,-774.34,0.00017958,2]
[379141599,1755161438507,-460.0,0.00017958,2]
[379141600,1755161438516,-460.0,0.00017958,2]
[379141601,1755161438526,-464.28484874,0.00017958,2]
[379141602,1755161438535,-460.0,0.00017958,2]
[379141603,1755161438545,-460.0,0.00017958,2]
[379141604,1755161438555,-460.0,0.00017958,2]
[379141605,1755161438565,-340.0,0.00017958,2]
[379141606,1755161438575,-460.0,0.00017958,2]
[379141607,1755161438584,-941.38,0.00017958,2]
[379141608,1755161438593,-2351.48,0.00017958,2]
[379141609,1755161438604,-460.0,0.00017958,2]
[379141610,1755161438613,-1140.99,0.00017958,2]
[379141612,1755161438623,-460.0,0.00017958,2]
[379141614,1755161438632,-460.0,0.00017958,2]
[379141616,1755161438642,-460.0,0.00017958,2]
[379141619,1755161438652,-561.09108818,0.00017958,2]
[379141620,1755161438662,-460.0,0.00017958,2]
[379141623,1755161438671,-460.0,0.00017958,2]
[379141624,1755161438681,-838.86,0.00017958,2]
[379141626,1755161438691,-500.0,0.00017958,2]
[379141628,1755161438701,-460.0,0.00017958,2]
[379141630,1755161438710,-4339.02,0.00017958,2]
[379141631,1755161438720,-460.0,0.00017958,2]
[379141632,1755161438729,-460.0,0.00017958,2]
[379141633,1755161438738,-575.886,0.00017958,2]
[379141634,1755161438748,-460.0,0.00017958,2]
[379141635,1755161438757,-724.17,0.00017958,2]
[379141636,1755161438766,-460.0,0.00017958,2]
[379141637,1755161438776,-2336.73,0.00017958,2]
[379141638,1755161438785,-1415.14,0.00017958,2]
[379141639,1755161438795,-460.0,0.00017958,2]
[379141640,1755161438803,-460.0,0.00017958,2]
[379141641,1755161438813,-1029.35,0.00017958,2]
[379141642,1755161438822,-814.67,0.00017958,2]
[379141643,1755161438832,-677.28,0.00017958,2]
[379141644,1755161438843,-751.24,0.00017958,2]
[379141645,1755161438852,-460.0,0.00017958,2]
[379141646,1755161438862,-321.57668345,0.00017958,2]
[379141647,1755161438871,-1001.58,0.00017958,2]
[379141648,1755161438881,-1090.43,0.00017958,2]
[379141649,1755161438890,-681.5,0.00017958,2]
[379141650,1755161438899,-2053.27,0.00017958,2]
[379141651,1755161438908,-3631.21,0.00017958,2]
[379141652,1755161438917,-460.0,0.00017958,2]
[379141654,1755161438926,-460.0,0.00017958,2]
[379141655,1755161438935,-519.56,0.00017958,2]
[379141657,1755161438944,-3166.4,0.00017958,2]
[379141658,1755161438953,-460.0,0.00017958,2]
[379141659,1755161438962,-460.0,0.00017958,2]
[379141660,1755161438971,-593.58,0.00017958,2]
[379141661,1755161438981,-1028.08,0.00017958,2]
[379141662,1755161438990,-783.99,0.00017958,2]
[379141663,1755161438999,-460.0,0.00017958,2]
[379141664,1755161439008,-460.0,0.00017958,2]
[379141665,1755161439017,-679.71,0.00017958,2]
[379141666,1755161439026,-541.70530724,0.00017958,2]
[379141667,1755161439041,-460.0,0.00017958,2]
[379141668,1755161439050,-1485.08,0.00017958,2]
[379141669,1755161439060,-460.0,0.00017958,2]
[379141670,1755161439070,-460.0,0.00017958,2]
[379141671,1755161439080,-524.11,0.00017958,2]
[379141672,1755161439089,-480.73,0.00017958,2]
[379141673,1755161439099,-938.01,0.00017958,2]
[379141674,1755161439108,-460.0,0.00017958,2]
[379141675,1755161439117,-522.99,0.00017958,2]
[379141676,1755161439129,-460.0,0.00017958,2]
[379141677,1755161439139,-1071.15,0.00017958,2]
[379141678,1755161439148,-680.06,0.00017958,2]
[379141679,1755161439158,-460.0,0.00017958,2]
[379141680,1755161439168,-460.0,0.00017958,2]
[379141681,1755161439178,-460.0,0.00017958,2]
[379141682,1755161439187,-625.7,0.00017958,2]
[379141683,1755161439197,-1081.61,0.00017958,2]
[379141684,1755161439206,-1307.63,0.00017958,2]
[379141685,1755161439216,-460.0,0.00017958,2]
[379141686,1755161439225,-460.0,0.00017958,2]
[379141687,1755161439235,-460.0,0.00017958,2]
[379141688,1755161439244,-2769.99,0.00017958,2]
[379141689,1755161439254,-460.0,0.00017958,2]
[379141690,1755161439263,-460.0,0.00017958,2]
[379141691,1755161439273,-460.0,0.00017958,2]
[379141692,1755161439283,-460.0,0.00017958,2]
[379141693,1755161439296,-1121.77,0.00017958,2]
[379141694,1755161439309,-555.76,0.00017958,2]
[379141695,1755161439319,-460.0,0.00017958,2]
[379141696,1755161439328,-460.0,0.00017958,2]
[379141697,1755161439337,-460.0,0.00017958,2]
[379141698,1755161439346,-460.0,0.00017958,2]
[379141699,1755161439356,-460.0,0.00017958,2]
[379141700,1755161439365,-998.94,0.00017958,2]
[379141701,1755161439374,-148198.95368726,0.00017959,2]
[379141703,1755161439388,-1402.84053332,0.00017959,2]
[379141706,1755161439404,-5298.5188089,0.00017959,2]
[379141708,1755161439921,-114193.49763528,0.00017959,2]
[379141709,1755161439931,-500.0,0.00017961,2]
[379141710,1755161439940,-501.91563316,0.00017973,2]
[379141712,1755161439949,-500.0,0.00017973,2]
[379141714,1755161439958,-771.1417293,0.00017997,2]
[379141716,1755161439968,-573.1,0.00018,2]
[379141718,1755161439977,-308.0,0.00018037,2]
[379141720,1755161439986,-460.0,0.00018048,2]
[379141722,1755161439996,-460.0,0.00018048,2]
[379141724,1755161440005,-559.17958988,0.00018048,2]
[379141726,1755161440014,-460.0,0.00018048,2]
[379141728,1755161440024,-1146.64,0.00018048,2]
[379141730,1755161440036,-460.0,0.00018048,2]
[379141732,1755161440046,-607.29,0.00018048,2]
[379141734,1755161440054,-12198.42,0.00018048,2]
[379141736,1755161440063,-945.47873918,0.00018048,2]
[379141738,1755161440074,-318.23649186,0.00018048,2]
[379141741,1755161440085,-32.88476896,0.00018048,2]
[379141743,1755161440094,-1527.77330648,0.00018048,2]
[379141745,1755161440105,-1346.69227202,0.00018048,2]
[379141748,1755161440117,-3431.45766972,0.00018048,2]
[379141750,1755161440128,-3329.24096322,0.00018048,2]
[379142021,1755161443067,-160.90648147,0.00017858,2]
[379142023,1755161443077,-742.08,0.00017957,2]
[379142025,1755161443086,-660.19,0.00017958,2]
[379142027,1755161443096,-77.99470853,0.00017958,2]
[379142031,1755161443125,-382.00529147,0.00017958,2]
[379142033,1755161443136,-2731.91578856,0.00018048,2]
[379142035,1755161443145,-3196.94,0.00018048,2]
[379142037,1755161443154,-6489.13891897,0.00018048,2]
[379142264,1755161446248,-522.43,0.00017956,2]
[379142265,1755161446258,-460.0,0.00017958,2]
[379142266,1755161446267,-1384.418153,0.00018048,2]
[379142294,1755161482642,218.85851883,0.0003,120]
[379142296,1755161527302,218.85851883,0.0003,120]
[379142298,1755161564905,156.774244,0.00023,30]
[379142299,1755161565791,156.774244,0.00023,30]
[379142300,1755161566000,-4657.09493785,0.00017856,2]
[379142301,1755161566028,-300.0,0.00017857,2]
[379142302,1755161566055,-301.09490997,0.00017857,2]
[379142303,1755161566088,-500.0,0.00017857,2]
[379142304,1755161566118,-239.27401408,0.00017857,2]
[379142305,1755161566148,-500.0,0.00017857,2]
[379142306,1755161566174,-500.0,0.00017857,2]
[379142307,1755161566200,-167.59605391,0.00017857,2]
[379142308,1755161566229,-513.94008419,0.00017858,2]
[379142309,1755161566268,156.774244,0.00023,30]
[379142310,1755161578474,1135.44371911,0.0001784,2]
[379142312,1755161631479,13214.36,0.00028654,60]
[379142313,1755161738372,160.90648147,0.00017756,2]
[379142314,1755161749183,3711.82535367,0.00017824,2]
[379142315,1755161749208,676.36414671,0.00017824,2]
[379142316,1755161813825,2629.0,0.00017835,2]
[379142317,1755161982558,4113.74331389,0.00017802,2]
[379142318,1755162050000,693.98525737,0.00017802,2]
[379142319,1755162059580,499.0,0.00017612,2]
[379142320,1755162063923,499.0,0.00017559,2]
[379142322,1755162069157,499.0,0.00017575,2]
[379142323,1755162073557,389.90728203,0.00017545,2]
[379142324,1755162073580,109.09271797,0.00017545,2]
[379142325,1755162166723,156.774244,0.00023,30]
[379142326,1755162167101,156.774244,0.00023,30]
[379142327,1755162214853,3599.52539961,0.00017757,2]
[379142328,1755162218760,677.88391,0.00013699,2]
[379142335,1755162364103,5613.49797242,0.00016869,2]
[379142336,1755162364125,4386.50202758,0.00016869,2]
[379142340,1755162390685,555.18820592,0.00017802,2]
[379142344,1755162457757,3149.58472465,0.00017747,2]
[379142345,1755162570963,473.383236,0.00016869,2]
[379142361,1755162632256,-314.26,0.00017842,2]
[379142362,1755162632310,-240.92820589,0.00017842,2]
[379142363,1755162632320,-721.75239593,0.00017845,2]
[379142364,1755162632332,-478.24760407,0.00017845,2]
[379142365,1755162632341,-267.99179411,0.00017845,2]
[379142366,1755162632354,-32.00820589,0.00017845,2]
[379142367,1755162632363,-300.0,0.00017845,2]
[379142369,1755162632373,-300.0,0.00017845,2]
[379142371,1755162632386,-300.0,0.00017845,2]
[379142373,1755162632395,-300.0,0.00017846,2]
[379142374,1755162632404,-630.43548961,0.00017846,2]
[379142638,1755162638136,-181.56451039,0.00017846,2]
[379142639,1755162638146,-120.43548961,0.00017847,2]
[379142640,1755162638292,-339.56451039,0.00017847,2]
[379142641,1755162638302,-460.0,0.00017847,2]
[379142642,1755162638311,-4158.23,0.00017847,2]
[379142643,1755162638323,-460.0,0.00017847,2]
[379142644,1755162638333,-460.0,0.00017847,2]
[379142645,1755162638342,-460.0,0.00017847,2]
[379142646,1755162638352,-2292.81,0.00017847,2]
[379142647,1755162638361,-460.0,0.00017847,2]
[379142648,1755162638370,-462.85,0.00017847,2]
[379142649,1755162638381,-986.46,0.00017847,2]
[379142650,1755162638390,-460.0,0.00017847,2]
[379142651,1755162638399,-1967.71,0.00017847,2]
[379142652,1755162638409,-854.79,0.00017847,2]
[379142653,1755162638418,-460.0,0.00017847,2]
[379142654,1755162638428,-330.7305126,0.00017847,2]
[379142655,1755162638440,-2703.7294874,0.00017847,2]
[379142656,1755162638449,-3479.91,0.00017847,2]
[379142657,1755162638459,-596.17,0.00017847,2]
[379142658,1755162638468,-460.0,0.00017847,2]
[379142659,1755162638478,-123.70691885,0.00017847,2]
[379142710,1755162643314,-667.32308115,0.00017847,2]
[379142711,1755162643327,-985.24,0.00017847,2]
[379142712,1755162643336,-1405.94594626,0.00017847,2]
[379142713,1755162643348,-757.16405374,0.00017847,2]
[379142715,1755162643358,-651.39,0.00017847,2]
[379142717,1755162643367,-460.0,0.00017847,2]
[379142719,1755162643379,-1540.73,0.00017847,2]
[379142721,1755162643388,-497.07,0.00017847,2]
[379142723,1755162643398,-460.0,0.00017847,2]
[379142725,1755162643407,-502.27,0.00017847,2]
[379142727,1755162643416,-501.19,0.00017847,2]
[379142729,1755162643426,-1026.52,0.00017847,2]
[379142731,1755162643435,-500.66,0.00017847,2]
[379142733,1755162643444,-460.0,0.00017847,2]
[379142735,1755162643454,-1231.01049531,0.00017847,2]
[379142738,1755162643475,-676.49551176,0.00017847,2]
[379143042,1755162646310,-747.06399293,0.00017847,2]
[379143044,1755162646319,-599.63,0.00017847,2]
[379143046,1755162646328,-138.61163483,0.00017847,2]
[379143235,1755162687739,2585126.01382856,0.00030137,120]
[379143236,1755162693035,1435.34180585,0.00017747,2]
[379143237,1755162693058,1320.54482821,0.00017747,2]
[379143246,1755162729778,366.86110007,0.00017757,2]
[379143247,1755162731664,366.86110004,0.00017808,2]
[379143249,1755162766106,156.774245,0.00023,30]
[379143250,1755162766998,156.774245,0.00023,30]
[379143251,1755162784497,2182867.50464358,0.00028617,60]
[379143252,1755162788950,7945.73297168,0.00017757,2]
[379143253,1755162788977,10000.0,0.00017757,2]
[379143254,1755162789001,10000.0,0.00017757,2]
[379143255,1755162789025,10000.0,0.00017757,2]
[379143256,1755162789049,10000.0,0.00017757,2]
[379143257,1755162789077,10000.0,0.00017757,2]
[379143258,1755162789098,10000.0,0.00017757,2]
[379143259,1755162789119,10000.0,0.00017757,2]
[379143260,1755162789139,10000.0,0.00017757,2]
[379143261,1755162789160,10000.0,0.00017757,2]
[379143262,1755162789182,10000.0,0.00017757,2]
[379143263,1755162789203,10000.0,0.00017757,2]
[379143264,1755162789224,10000.0,0.00017757,2]
[379143265,1755162789246,10000.0,0.00017757,2]
[379143266,1755162789267,10000.0,0.00017757,2]
[379143267,1755162789288,10000.0,0.00017757,2]
[379143268,1755162789310,10000.0,0.00017757,2]
[379143269,1755162789332,10000.0,0.00017757,2]
[379143270,1755162789352,10000.0,0.00017757,2]
[379143271,1755162789373,10000.0,0.00017757,2]
[379143272,1755162789394,10000.0,0.00017757,2]
[379143273,1755162789415,10000.0,0.00017757,2]
[379143274,1755162789440,10000.0,0.00017757,2]
[379143275,1755162789462,10000.0,0.00017757,2]
[379143276,1755162789483,10000.0,0.00017757,2]
[379143277,1755162789666,10000.0,0.00017757,2]
[379143278,1755162789690,10000.0,0.00017757,2]
[379143279,1755162789711,10000.0,0.00017757,2]
[379143280,1755162789732,10000.0,0.00017757,2]
[379143281,1755162789753,10000.0,0.00017757,2]
[379143282,1755162789774,10000.0,0.00017757,2]
[379143283,1755162789795,10000.0,0.00017757,2]
[379143284,1755162789816,10000.0,0.00017757,2]
[379143285,1755162789837,10000.0,0.00017757,2]
[379143286,1755162789858,10000.0,0.00017757,2]
[379143287,1755162789879,10000.0,0.00017757,2]
[379143288,1755162789901,10000.0,0.00017757,2]
[379143289,1755162789924,2054.26702832,0.00017757,2]
[379143290,1755162804722,5000.0,0.0001784,2]
[379143291,1755162813201,2945.73297168,0.0001784,2]
[379143292,1755162813226,2054.26702832,0.0001784,2]
[379143293,1755162815757,1700.0,0.0001752,2]
[379143294,1755162821439,5000.0,0.0001784,2]
[379143295,1755162821804,166.26954,0.00016847,2]
[379143297,1755162829388,1079.46343168,0.0001784,2]
[379143298,1755162829413,3920.53656832,0.0001784,2]
[379143299,1755162837682,5000.0,0.0001784,2]
[379143303,1755162843273,547.30161457,0.00017746,2]
[379143305,1755162846373,532.16181711,0.0001784,2]
[379143306,1755162846395,4467.83818289,0.0001784,2]
[379143307,1755162854480,900.89329063,0.0001784,2]
[379143308,1755162863260,4631.26852648,0.0001784,2]
[379143309,1755162863282,368.73147352,0.0001784,2]
[379143310,1755162872731,151.11938259,0.00017746,2]
[379143311,1755162879372,5000.0,0.0001784,2]
[379143312,1755162895247,4480.14914389,0.0001784,2]
[379143313,1755162895270,519.85085611,0.0001784,2]
[379143314,1755162911388,452.98438446,0.0001784,2]
[379143315,1755162929193,2897.07881106,0.00017747,2]
[379143316,1755162930993,6130.08594837,0.00017757,2]
[379143317,1755162931017,10000.0,0.00017757,2]
[379143318,1755162931040,10000.0,0.00017757,2]
[379143319,1755162931260,10000.0,0.00017757,2]
[379143320,1755162931283,10000.0,0.00017757,2]
[379143321,1755162931308,10000.0,0.00017757,2]
[379143322,1755162931330,10000.0,0.00017757,2]
[379143323,1755162931352,10000.0,0.00017757,2]
[379143324,1755162931373,10000.0,0.00017757,2]
[379143325,1755162931395,10000.0,0.00017757,2]
[379143326,1755162931416,10000.0,0.00017757,2]
[379143327,1755162931437,10000.0,0.00017757,2]
[379143328,1755162931458,10000.0,0.00017757,2]
[379143329,1755162931483,10000.0,0.00017757,2]
[379143330,1755162931504,10000.0,0.00017757,2]
[379143331,1755162931526,10000.0,0.00017757,2]
[379143332,1755162931548,10000.0,0.00017757,2]
[379143333,1755162931570,10000.0,0.00017757,2]
[379143334,1755162931591,10000.0,0.00017757,2]
[379143335,1755162931613,10000.0,0.00017757,2]
[379143336,1755162931635,10000.0,0.00017757,2]
[379143337,1755162931656,10000.0,0.00017757,2]
[379143338,1755162944603,344.995875,0.00017637,2]
[379143340,1755162965889,163.0,7.1e-07,2]
[379143342,1755163065488,156.774245,0.0002254,30]
[379143343,1755163085996,1800.0,0.0001478,2]
[379143344,1755163088103,1575.0,0.0001747,2]
[379143345,1755163090210,1800.0,0.0001615,2]
[379143346,1755163093684,1575.0,0.00017661,2]
[379143347,1755163093958,1800.0,0.0001752,2]
[379143349,1755163159478,942.004125,0.00017717,2]
[379143350,1755163159503,1940.18420031,0.00017717,2]
[379143351,1755163167027,663.459606,0.00013699,2]
[379143353,1755163217485,210.35256253,0.00017646,2]
[379143355,1755163330810,5000.0,0.0001774,2]
[379143356,1755163346406,2186.00363116,0.00016756,2]
[379143357,1755163346427,7813.99636884,0.00016756,2]
[379143358,1755163346902,2186.00363116,0.0001774,2]
[379143359,1755163346924,2813.99636884,0.0001774,2]
[379143360,1755163363664,5000.0,0.0001774,2]
[379143361,1755163364092,156.774245,0.0002254,30]
[379143362,1755163379438,2186.00363116,0.0001774,2]
[379143363,1755163379462,2813.99636884,0.0001774,2]
[379143364,1755163395234,5000.0,0.0001774,2]
[379143365,1755163412184,2186.00363116,0.0001774,2]
[379143366,1755163412207,2813.99636884,0.0001774,2]
[379143367,1755163416236,1003.3281406,0.00016755,2]
[379143370,1755163428867,5000.0,0.0001774,2]
[379143371,1755163433977,183.6411044,0.00016889,2]
[379143372,1755163444297,999.03438616,0.0001774,2]
[379143373,1755163444319,4000.96561384,0.0001774,2]
[379143374,1755163461143,5000.0,0.0001774,2]
[379143375,1755163472168,999.03438616,0.00016756,2]
[379143376,1755163472190,244.69304484,0.00016756,2]
[379143377,1755163476793,5000.0,0.0001774,2]
[379143378,1755163547187,2687.09343308,0.00017647,2]
[379143381,1755163566434,2068.21352208,0.0001774,2]
[379143382,1755163566456,2931.78647792,0.0001774,2]
[379143387,1755163611769,5000.0,0.0001774,2]
[379143388,1755163620924,927.05879991,0.0001774,2]
[379143389,1755163629836,1141.15472217,0.0001774,2]
[379143390,1755163629859,3858.84527783,0.0001774,2]
[379143391,1755163645481,5000.0,0.0001774,2]
[379143392,1755163647605,1141.15472217,0.00016749,2]
[379143393,1755163647628,5946.75687493,0.00016749,2]
[379143394,1755163660192,208.5449785,0.00016749,2]
[379143395,1755163660935,3844.69814657,0.0001774,2]
[379143396,1755163660958,1155.30185343,0.0001774,2]
[379143398,1755163676460,5000.0,0.0001774,2]
[379143399,1755163692555,3844.69814657,0.0001774,2]
[379143400,1755163692577,1155.30185343,0.0001774,2]
[379143401,1755163707916,5000.0,0.0001774,2]
[379143421,1755163724674,3844.69814657,0.0001774,2]
[379143422,1755163724697,1155.30185343,0.0001774,2]
[379143423,1755163731307,1747.143546,0.00016751,2]
[379143424,1755163740371,5000.0,0.0001774,2]
[379143426,1755163756065,2097.55460057,0.0001774,2]
[379143427,1755163756087,2902.44539943,0.0001774,2]
[379143435,1755163771427,5000.0,0.0001774,2]
[379143437,1755163786888,2097.55460057,0.0001774,2]
[379143438,1755163786911,2902.44539943,0.0001774,2]
[379143439,1755163800322,7097.55460057,0.00016883,2]
[379143440,1755163800346,10000.0,0.00016883,2]
[379143441,1755163800369,4024.09954953,0.00016883,2]
[379143442,1755163802519,5000.0,0.0001774,2]
[379143446,1755163818057,975.90045047,0.0001774,2]
[379143447,1755163818082,4024.09954953,0.0001774,2]
[379143502,1755163832476,-300.0,0.00017744,2]
[379143503,1755163832486,-216.24642979,0.00017745,2]
[379143505,1755163832496,-1200.0,0.00017745,2]